Cogmind - Beta 15 @@@ ROGUE MODE // 2025.07.14 @ 20:43:51 Player: winnking222 Result: Destroyed by PO-38E(R) with Subdweller Machine Gun Performance ------------- Evolutions (0) 0 Regions Visited (3) 600 Robots Destroyed (49) 245 Value Destroyed (1055) 1055 Prototype IDs (3) 60 Alien Tech Used (0) 0 Bonus (60) 60 TOTAL SCORE: 2020 Bonus ------- Follower Combat Kills 60 Cogmind --------- Core Integrity 0/250 Matter 243/300 Energy 247/250 System Corruption 0% Temperature Cool (0) Movement Rolling (215) Ox9 Location -10/Subcaves Parts ------- > --- POWER (1) -------- Ion Engine > --- PROPULSION (2) --- Wheel Subdweller Monowheel > --- UTILITY (2) ------ Huge Storage Unit Makeshift Light Armor Plating > --- WEAPON (2) ------- Subdweller Machine Gun Makeshift Shrapnel Gun > --- INVENTORY (25) --- Subdweller Power Source Subdweller Power Source Subdweller Power Source Subdweller Monowheel Disposable Heat Sink Humpback Subdweller Optics Subdweller Optics Scrap Shield Scrap Shield Subdweller Laser Light Assault Rifle Battle Rifle Subdweller Machine Gun Dirty Datajack (18) Scrap Shield Fragment (48) Peak State ------------ > --- POWER ------------ Ion Engine > --- PROPULSION ------- Wheel Subdweller Monowheel > --- UTILITY ---------- Huge Storage Unit Makeshift Light Armor Plating > --- WEAPON ----------- Subdweller Machine Gun Makeshift Shrapnel Gun > --- INVENTORY -------- Subdweller Power Source Subdweller Power Source Subdweller Power Source Subdweller Monowheel Disposable Heat Sink Humpback Subdweller Optics Subdweller Optics Scrap Shield Scrap Shield Subdweller Laser Light Assault Rifle Battle Rifle Subdweller Machine Gun Dirty Datajack Scrap Shield Fragment [Rating: 18] Favorites ----------- Power Ion Engine Engine Ion Engine Propulsion Light Treads Treads Light Treads Leg Aluminum Leg Wheel Wheel Utility Huge Storage Unit Device Seismic Detector Storage Huge Storage Unit Protection Makeshift Light Armor Plating Weapon Assault Rifle Energy Gun Medium Laser Ballistic Gun Assault Rifle Ballistic Cannon Battle Cannon Special Melee Weapon Dirty Datajack Build | -11 -10 -10 -10 ------- Run | Yrd Mat Min Sub Slots Evolved . | . . . . Power . | . . . . Propulsion . | . . . . Utility . | . . . . Weapon . | . . . . Parts Attached 37 | 7 9 4 17 Power 3 | 1 1 . 1 Engine 3 | 1 1 . 1 Core . | . . . . Reactor . | . . . . Propulsion 9 | 2 1 1 5 Treads 3 | 2 1 . . Leg 1 | . . . 1 Wheel 5 | . . 1 4 Hover . | . . . . Flight . | . . . . Utility 12 | 2 4 3 3 Device 6 | 1 . 3 2 Storage 3 | 1 2 . . Processor . | . . . . Hackware . | . . . . Protection 3 | . 2 . 1 Artifact . | . . . . Weapon 13 | 2 3 . 8 Energy Gun 1 | 1 . . . Energy Cannon . | . . . . Ballistic Gun 10 | 1 3 . 6 Ballistic Cannon 1 | . . . 1 Launcher . | . . . . Special Weapon . | . . . . Impact Weapon . | . . . . Slashing Weapon . | . . . . Piercing Weapon . | . . . . Special Melee Weapon 1 | . . . 1 Unidentified Prototypes 1 | . . 1 . Parts Lost 17 | . 3 2 12 Power 1 | . . . 1 Propulsion 6 | . 1 1 4 Utility 5 | . 1 1 3 Weapon 5 | . 1 . 4 Highest Loss Streak 3 | . 2 2 3 To Critical Strikes 1 | . . . 1 Average Backups 9 | 3 6 5 11 Power 1 | 1 . . 1 Propulsion 1 | . 2 2 1 Utility 3 | 1 3 1 4 Weapon 2 | . 1 1 3 Tool/Special . | . . . . Unused Backups 14 | . 1 . 13 Power 4 | . 1 . 3 Propulsion 1 | . . . 1 Utility 6 | . . . 6 Weapon 3 | . . . 3 Tool/Special . | . . . . Average Slot Usage (%) 97 | . 99 99 95 Engine 13 | . 14 14 13 Treads 10 | . 27 15 . Leg 3 | . . . 6 Wheel 10 | . . 12 16 Device 12 | . 13 14 11 Storage 13 | . 12 14 14 Protection 1 | . 2 . 2 Ballistic Gun 24 | . 25 28 22 Ballistic Cannon 2 | . . . 3 Peak Build Rating 18 | 7 7 15 18 Average Rating 9 | 6 6 7 11 On Entrance 5 | . 7 7 8 Naked Turns . | . . . . Heaviest Build 97 | 13 90 90 97 Greatest Support 40 | 40 40 40 40 Greatest Overweight (x) 9 | . 2 8 9 Average Overweight (x) 4 | . 1 7 5 Largest Inventory Capacity 25 | 8 25 25 25 Average Capacity 23 | 7 22 25 25 Most Carried 22 | 5 9 7 22 Average Carried 10 | 3 6 5 13 Final Capacity 25 | 8 25 25 25 Final Carried 19 | 4 6 6 19 Class Distribution -------------------- 91% | Mutant 8% | Scavenger-Mutant Dominant Class ---------------- Mutant | -10/Materials Mutant | -10/Mines Mutant | -10/Subcaves Resources | -11 -10 -10 -10 ----------- Run | Yrd Mat Min Sub Matter Collected 1592 | 291 506 82 713 Remotely . | . . . . Salvage Created 1512 | 154 792 93 473 Parts 112 | 20 46 12 34 Haulers Intercepted 1 | . 1 . . Recyclers Shooed 3 | . 3 . . Parts Field Recycled . | . . . . Retrieved Matter . | . . . . Parts Self-Destructed 11 | . . . 11 Prevented . | . . . . Kills | -11 -10 -10 -10 ------- Run | Yrd Mat Min Sub Combat Hostiles Destroyed 37 | . 16 6 15 Guns 33 | . 16 6 11 Cannons 4 | . . . 4 Classes Destroyed 8 | 2 5 . 1 Worker 1 | . 1 . . Tunneler 5 | 5 . . . Hauler 1 | . 1 . . Recycler 4 | 1 3 . . Watcher 1 | . 1 . . Swarmer 15 | . 6 6 3 Grunt 11 | . 10 . 1 Subdweller 11 | . . . 11 Best Kill Streak 7 | 2 7 3 3 Combat Bots Only 6 | . 6 3 3 Max Kills in Single Turn 2 | 2 2 2 1 Gunslinging 1 | . . 1 . Exploded . | . . . . Melee . | . . . . Uniques/NPCs Destroyed . | . . . . Combat | -11 -10 -10 -10 -------- Run | Yrd Mat Min Sub Hostile Shots Fired 225 | . 94 37 94 Missed 67 | . 27 8 32 Hits 158 | . 67 29 62 Projectile 158 | . 67 29 62 Critical Strikes 5 | . 1 . 4 Damage Taken 2132 | . 800 229 1103 Core 265 | . 62 23 180 Absorbed by Shields . | . . . . Core Remaining (%) 100 | 100 . . . Volleys Fired 184 | 7 66 11 100 Largest 2 | 2 2 2 2 Hottest 70 | 70 70 40 63 Shots Fired 360 | 14 131 22 193 Gun 327 | 14 131 22 160 Cannon 33 | . . . 33 Launcher . | . . . . Special . | . . . . Kinetic 339 | 7 117 22 193 Thermal 21 | 7 14 . . Explosive . | . . . . Electromagnetic . | . . . . Robot Hit Streak 17 | 4 11 3 17 Robot Miss Streak 7 | 2 7 6 3 Penetration Max . | . . . . Secondary Targets 5 | . 2 2 1 Max Gunslinging Chain 1 | . 1 1 1 Shots Hit Robots 185 | 8 84 12 81 Core Hits 77 | 7 35 6 29 Critical Kills . | . . . . Critical Parts Destroyed . | . . . . Critical Strikes 2 | . 1 . 1 Burn 1 | . 1 . . Blast 1 | . . . 1 Melee Attacks 2 | . . . 2 Impact . | . . . . Slashing . | . . . . Piercing 2 | . . . 2 Sneak Attacks . | . . . . Combat Hostiles . | . . . . Follow-up Attacks . | . . . . Damage Inflicted 2782 | 113 1094 158 1417 Guns 2419 | 113 1088 158 1060 Cannons 352 | . . . 352 Explosions . | . . . . Melee 5 | . . . 5 Ramming 6 | . 6 . . Kinetic 2622 | 51 1001 158 1412 Thermal 149 | 62 87 . . Explosive . | . . . . Electromagnetic . | . . . . Impact . | . . . . Slashing . | . . . . Piercing 5 | . . . 5 Highest Corruption . | . . . . Average Corruption . | . . . . Corruption Purged . | . . . . Corruption Blocked . | . . . . Overload Shots . | . . . . Overflow Damage 7 | . . . 7 Projectiles 7 | . . . 7 Explosions . | . . . . Melee . | . . . . Knockbacks 1 | . . . 1 Impact . | . . . . Kinetic 1 | . . . 1 Secondary . | . . . . Self-Inflicted Damage . | . . . . Shots . | . . . . Rammed 1 | . 1 . . Targets Rammed 1 | . 1 . . Kicked . | . . . . Crushed . | . . . . Highest Temperature 219 | 18 171 . 219 Average Temperature 48 | 8 51 . 118 Received Heat Transfer 865 | . 369 . 496 Siege Activations . | . . . . Martial Activations . | . . . . Shielding Activations . | . . . . Robots Disrupted . | . . . . Combat Hostiles . | . . . . Robots Corrupted . | . . . . Combat Hostiles . | . . . . Parts Fried . | . . . . Impact Corruptions . | . . . . Robots Melted . | . . . . Combat Hostiles . | . . . . Parts Melted 1 | . 1 . . Heat Transferred 518 | 185 333 . . Parts Sabotaged . | . . . . Parts Stolen . | . . . . Parts Stripped . | . . . . Power Chain Reactions . | . . . . Alert | -11 -10 -10 -10 ------- Run | Yrd Mat Min Sub Maximum Alert Level . | . . . . Low Security (%) 100 | 100 100 100 . Level 1 . | . . . . Level 2 . | . . . . Level 3 . | . . . . Level 4 . | . . . . Level 5 . | . . . . High Security . | . . . . Max Security . | . . . . Peak Influence 165 | 10 165 93 . Initial 6 | . 6 3 . Average 36 | . 46 19 . Influence Increases 708 | 30 448 140 90 Destroy 0b10 Robot/C 520 | . 320 120 80 Destroy 0b10 Robot/NC 60 | 30 30 . . Destroy Leader 104 | . 74 20 10 Successful Hack 5 | . 5 . . Destroy Structure 4 | . 4 . . Lose Combat Pursuer 15 | . 15 . . Influence Decreases 695 | 20 450 148 77 Entered New Map 9 | . 4 5 . Time Decay 560 | 20 370 123 47 Lost Part 80 | . 30 20 30 Purge Threat 46 | . 46 . . Squads Dispatched 5 | . 5 . . Investigation 4 | . 4 . . Extermination . | . . . . Reinforcement 1 | . 1 . . Assault . | . . . . Garrison . | . . . . Intercept . | . . . . Searches Triggered . | . . . . Construction Impeded . | . . . . Haulers Reinforced . | . . . . Active Scanning Responses . | . . . . Cargo Convoy Interrupts . | . . . . Stealth | -11 -10 -10 -10 --------- Run | Yrd Mat Min Sub Distress Signals 1 | . 1 . . Communications Jammed . | . . . . Distress Signals . | . . . . Times Spotted 51 | . 25 6 20 Peak Tracking Total 6 | . 6 3 3 Tactical Retreats 1 | . 1 . . Traps | -11 -10 -10 -10 ------- Run | Yrd Mat Min Sub Traps Triggered 4 | . 4 . . Indirectly . | . . . . Trap Hack Attempts . | . . . . Triggered . | . . . . Disarmed . | . . . . Reprogrammed . | . . . . Reused 1 | . . . 1 Traps Extracted . | . . . . Installed 1 | . . . 1 Triggered . | . . . . Most Traps Carried 1 | . . . 1 Machines | -11 -10 -10 -10 ---------- Run | Yrd Mat Min Sub Machines Disabled . | . . . . Max in Single Turn . | . . . . Machines Repaired . | . . . . Machines Dismantled . | . . . . Machines Sabotaged . | . . . . Overloaded Fab Kills . | . . . . Hacking | -11 -10 -10 -10 --------- Run | Yrd Mat Min Sub Machines Accessed 4 | . 4 . . Terminals 4 | . 4 . . Fabricators . | . . . . Repair Stations . | . . . . Recycling Units . | . . . . Scanalyzers . | . . . . Garrison Access . | . . . . Total Hacks 11 | . 11 . . Successful 3 | . 3 . . Failed 8 | . 8 . . Catastrophic 3 | . 3 . . Database Lockouts . | . . . . Manual 4 | . 4 . . Terminals 11 | . 11 . . Fabricators . | . . . . Repair Stations . | . . . . Recycling Units . | . . . . Scanalyzers . | . . . . Garrison Access . | . . . . Terminal Hacks 3 | . 3 . . Prototype ID Bank 1 | . 1 . . Unreport Threat 1 | . 1 . . Zone Layout 1 | . 1 . . Fabricator Hacks . | . . . . Repair Station Hacks . | . . . . Recycling Unit Hacks . | . . . . Scanalyzer . | . . . . Garrison Access Hacks . | . . . . Unauthorized Hacks . | . . . . Terminals . | . . . . Fabricators . | . . . . Repair Stations . | . . . . Recycling Units . | . . . . Scanalyzers . | . . . . Garrison Access . | . . . . Data Cores Recovered . | . . . . Used . | . . . . Hacking Detections 3 | . 3 . . Full Trace Events 1 | . 1 . . Feedback Events . | . . . . Feedback Blocked . | . . . . Robot Schematics Acquired . | . . . . Robots Built . | . . . . Authchips . | . . . . Time . | . . . . Total Robot Build Rating . | . . . . Part Schematics Acquired . | . . . . Parts Built . | . . . . Authchips . | . . . . Time . | . . . . Total Part Build Rating . | . . . . Parts Repaired . | . . . . Time . | . . . . Parts Recycled . | . . . . Recycled Matter . | . . . . Retrieved Matter . | . . . . Retrieved Components . | . . . . Parts Scanalyzed . | . . . . Part Schematics Acquired . | . . . . Parts Damaged . | . . . . Bothacking | -11 -10 -10 -10 ------------ Run | Yrd Mat Min Sub Used RIF Installer . | . . . . Robots Hacked . | . . . . Non-combat . | . . . . Combat . | . . . . Robot Hacks Applied . | . . . . Relay Couplers Released . | . . . . Fabnet Peak Effective % . | . . . . Robots Rewired . | . . . . Allies Hacked . | . . . . Hacks Repelled . | . . . . Allies | -11 -10 -10 -10 -------- Run | Yrd Mat Min Sub Total Allies 3 | . . 3 . Largest Group 3 | . . 3 3 Highest-Rated Group 40 | . . 40 40 Highest-Rated Ally 16 | . . 16 16 Total Orders . | . . . . Ally Attacks 24 | . . . 24 Total Damage 277 | . . . 277 Kills 2 | . . . 2 Allies Corrupted . | . . . . Allies Melted . | . . . . Intel | -11 -10 -10 -10 ------- Run | Yrd Mat Min Sub Active Infowar (turns) 5263 | 167 1712 630 2754 Optics 472 | . . . 472 Sensors 82 | . . 2 80 Seismic 4709 | 167 1712 628 2202 Robot Analysis Total . | . . . . Derelict Logs Recovered 2 | . . 1 1 Drone Launches . | . . . . Drone Recoveries . | . . . . Exploration | -11 -10 -10 -10 ------------- Run | Yrd Mat Min Sub Turns Passed 6060 | 234 1838 634 3354 Spaces Moved 2350 | 134 494 287 1435 Core 16 | 16 . . . Treads 624 | 118 494 12 . Legs . | . . . . Wheels 1710 | . . 275 1435 Hover . | . . . . Flight . | . . . . Fastest Speed 50 | 50 160 200 130 Average Speed 198 | 146 292 205 170 Slowest Speed 480 | 160 320 480 215 Overloaded Moves . | . . . . Propulsion Burnouts . | . . . . Robots Hopped . | . . . . Potential Cave-ins . | . . . . Cave-ins Triggered . | . . . . Exploration Rate (%) 53 | 7 89 59 57 Regions Visited 3 Branch Regions 2 Pre-discovered Areas 1 | . . . 1 Known Exits Taken . | . . . . Unknown Exits Taken 3 | 1 1 1 . Scrap Searched 3 | . . 1 2 Spaces Dug 2 | . . . 2 Terrain Destroyed 2 | . . . 2 Melee . | . . . . Projectile 2 | . . . 2 AOE . | . . . . Terrain Rammed . | . . . . Walls Destroyed . | . . . . Machines Disabled . | . . . . Actions | -11 -10 -10 -10 --------- Run | Yrd Mat Min Sub Total 3378 | 156 752 309 2161 Wait 729 | . 155 6 568 Move 2347 | 133 493 286 1435 Hop . | . . . . Pick Up 52 | 9 13 2 28 Fast Attach 3 | 2 1 . . Attach 23 | 5 3 2 13 Detach . | . . . . Swap 24 | . 14 2 8 Drop 12 | . 6 . 6 Fire 184 | 7 66 11 100 Melee 2 | . . . 2 Ram . | . . . . Kick . | . . . . Crush 1 | . 1 . . Escape Stasis . | . . . . Rewire . | . . . . Trap 1 | . . . 1 Miscellaneous . | . . . . Route ------- -11/Scrapyard -10/Materials (discovered 5 exits: [*Mat x3] / [*Min x2]) -10/Mines (discovered 2 exits: [*Mat] / [*Sub]) -10/Subcaves (discovered 1 exit: [*Mat]) History --------- Turn | Location | Event 19 | -11/Scrapyard | Discovered new exit (range 15) 235 | -11/Scrapyard | Entered Materials 312 | -10/Materials | Build established: Mutant 561 | -10/Materials | Discovered new exit (range 11) 798 | -10/Materials | Discovered new exit (range 15) 1440 | -10/Materials | Discovered new exit (range 14) 1700 | -10/Materials | Discovered new exit (range 11) 2051 | -10/Materials | Discovered new exit (range 7) 2073 | -10/Materials | Entered Mines 2083 | -10/Mines | Met a Derelict bent on vengeance 2367 | -10/Mines | Learned Materials garrison access intel 2367 | -10/Mines | Assisted by bots powering up and referring to "LRC-V3" 2469 | -10/Mines | Discovered new exit (range 11) 2615 | -10/Mines | Found a damaged Exp. Sensor Array with a note attached 2623 | -10/Mines | Found Prototype Device 2624 | -10/Mines | Identified Exp. Sensor Array 2695 | -10/Mines | Discovered new exit (range 6) 2707 | -10/Mines | Entered Subcaves 2707 | -10/Subcaves | Accompanied by 3 allies 2708 | -10/Subcaves | Approached by a straggling Scientist 3334 | -10/Subcaves | A swath of the cavern ceiling suddenly collapsed 4346 | -10/Subcaves | A swath of the cavern ceiling suddenly collapsed 4487 | -10/Subcaves | Core integrity fell below 50% 4543 | -10/Subcaves | Lost 3 parts (2n1w) 4546 | -10/Subcaves | Shifting Twisted Machinery released Battle Cannon 4548 | -10/Subcaves | Shifting Twisted Machinery released Battle Rifle 4600 | -10/Subcaves | Learned location of Zion (-6) 4729 | -10/Subcaves | Shifting Twisted Machinery released Battle Cannon 4729 | -10/Subcaves | Shifting Twisted Machinery released Sub. Beam Cannon 4731 | -10/Subcaves | Shifting Twisted Machinery released Sub. Beam Cannon 5068 | -10/Subcaves | Discovered new exit (range 9) 5245 | -10/Subcaves | Disturbed a concealed Subdweller 5488 | -10/Subcaves | Build established: Scavenger-Mutant 5581 | -10/Subcaves | Core integrity fell below 20% 5825 | -10/Subcaves | Build established: Mutant 6061 | -10/Subcaves | Destroyed by PO-38E(R) with Subdweller Machine Gun Last Messages --------------- 05541_ Flight Unit fries itself beyond repair. 05547_ Acquired 15 matter. 05550_ Acquired 13 matter. 05552_ Acquired 9 matter. 05588_ KT-7JD(R) destroyed. 05594_ Acquired 37 matter. 05632_ Sub. Monowheel destroyed. 05640_ HV-ULP(R) destroyed. 05643_ Acquired 4 matter. 05646_ Acquired Scrap Shield. 05662_ Acquired 5 matter. 05677_ Acquired 3 matter. 05810_ Subatomizers dissect the Sub. Optics. 05848_ Acquired 10 matter. 05895_ Sub. Monowheel shoots sparks and powers down. 05899_ Subatomizers dissect the Sub. Monowheel. 05901_ Acquired Sub. Monowheel. 06049_ Critical hit (Destroy). 06052_ LD-VFS(R) destroyed. 06053_ Sub. Machine Gun destroyed. Map ----- +----------------------------------------------------+ | "% ##???????????## %??????????????# ## | | #??????##???#" ##??????????????# % ### | | #?????##"?### "###?####???????# %##?? | | ####??#""##%" ### ######??## ##??? | | |###?#" ## ##??# ##???? | | " #?## ###### #??## ###????? | | " #### ##?# #???###??????? | | %## #" ### #????????????? | | ### ##" ### ##????????????? | | #######" #?## ##?????????????? | | ##??#" ##??# ## ##??????????????? | | #??#"##???## ## ##???????????????? | | ###??###?????### ### ##????????????????? | | ##??????????????# ! ### #?????????????????? | | ##???????????????# ## #?????????????????? | | ##??????????????## ####?????????????????? | | #??????????????# #????????????????????? | | #??????????????# #????????????????????? | | ##??????????????# #????????????????????? | | #???????????????# #????????????????????? | | #??????????????## #????????????????????? | | ##?????????????# #????????????????????? | | #?????????????## ## ##????????????????????? | | #??????????????###?# ##?????????????????????? | | ##?????????????????## #??????????????????????? | | ##???????????????#### @### ##??????????????? | | ##???????????????# &%& #??????????????? | | ##??????????????## R* #?????????????? | | #???????????????### ### ### #????????????? | | ##?????????????????# ???#?????#????????????? | | ##?????????????????# ?????????????????????? | | #????????????????? ????????????????????? | | ##????????????????# ????????????????????? | | ##?????????????????## ##???????????????????? | | #???????????????????# ##????????????????????? | | #??????????????????? ##?????????????????????? | | ##??????????????????? #??????????????????????? | | #???????????????????# #??????????????????????? | | ????????????????????# ??????????????????????? | | ???????????????????? ??????????????????????? | | ???????????????????? ### ??????????????????????? | | ????????????????????#??? ??????????????????????? | | ???????????????????????? ??????????????????????? | | ???????????????????????? ??????????????????????? | | ???????????????????????? ??????????????????????? | | ????????????????????????# ??????????????????????? | | ????????????????????????? ??????????????????????? | | ?????????????????????????????????????????????????? | | ?????????????????????????????????????????????????? | | ?????????????????????????????????????????????????? | +----------------------------------------------------+ Best States ------------- Heat Dissipation 25 Energy Generation 10 Energy Capacity 250 Matter Stores 300 Matter Capacity 300 Sight Range 21 Robot Scan Range 20 Terrain Scan Density 10 Armor Coverage 300 Evasion (%) 50 Recoil Reduction 2 Item Schematics ----------------- None Robot Schematics ------------------ None Fabricated ------------ Nothing Repaired ---------- Nothing Alien Tech Used ----------------- None Achievements -------------- None Challenges ------------ None Game ------ Seed AssaultFortressCharger Manual? 0 Play Time 00:22:46 Cumulative 91.3 hours Start 2025.07.14 @ 20:21:50 End 2025.07.14 @ 20:43:51 Sessions 1 Manual Loads 0 Difficulty Rogue Special Mode None Game No. 149 Rogue 149 Adventurer 0 Explorer 0 Win Type - Total 1 Types 1/0/0/0/0/0/0/0/0/0 Lore% 62 Gallery% 51 Achievement% 46 Wizard Run 0 Options --------- Layout 0 ASCII 0 Keyboard 0 Movement Mouse Keybinds 0 Fullscreen 1 Font 16/SmallcapsGlow Map View 75x55 Zoom Use 0% Tactical HUD 1 Map Filters NONE Filters NONE Steam 1 RUN: ae9253af-936c-4c29-bea2-07661f687392